bitfinex/quotes_SOLUSD_20250219
["timestamp","ask_amount","ask_price","bid_price","bid_amount"]
[1739957117189,0.0001,169.67,169.66,253.48426291]
[1739957118906,0.0001,169.67,169.66,254.48426291]
[1739957120215,0.063,169.68,169.67,82.8996959]
[1739957120523,0.063,169.68,169.67,238.99013702]
[1739957120710,0.063,169.68,169.67,238.10668573]
[1739957121612,0.063,169.69,169.68,14.41184443]
[1739957121910,0.063,169.69,169.68,15.29529153]
[1739957122814,0.0001,169.69,169.68,246.50828136]
[1739957122988,0.0001,169.7,169.69,15.41184443]
[1739957123185,0.063,169.73,169.72,20.9999959]
[1739957123390,0.063,169.73,169.72,240.14298729]
[1739957123596,0.063,169.73,169.72,245.1516959]
[1739957123914,1.5714,169.83,169.78,0.9999959]
[1739957124114,1.5714,169.83,169.81,11.95328983]
[1739957125609,1.5714,169.83,169.78,218.2597]
[1739957125815,7.4597,169.83,169.78,218.2597]
[1739957126110,7.4597,169.83,169.78,230.21298983]
[1739957126317,1.5714,169.83,169.78,230.21298983]
[1739957127517,1.5714,169.83,169.78,236.10278983]
[1739957127720,1.5714,169.83,169.78,230.21298983]
[1739957128008,19.41298983,169.83,169.78,218.2597]
[1739957128803,19.41298983,169.83,169.78,236.10288983]
[1739957128804,1.5714,169.83,169.78,236.10288983]
[1739957130021,1.6014,169.83,169.78,236.10288983]
[1739957130408,7.4897,169.83,169.78,230.21298983]
[1739957130914,19.44298983,169.83,169.78,218.2597]
[1739957131115,19.44298983,169.83,169.78,80.8997]
[1739957131116,11.95328983,169.8,169.78,80.8997]
[1739957131502,11.95328983,169.79,169.78,80.8997]
[1739957131708,17.84288983,169.79,169.78,80.8997]
[1739957133614,11.95328983,169.79,169.78,80.8997]
[1739957134612,11.95328983,169.81,169.78,80.8997]
[1739957134813,13.55468983,169.83,169.78,224.1495]
[1739957135016,1.6014,169.83,169.78,236.10278983]
[1739957137319,13.55468983,169.83,169.78,236.10278983]
[1739957137527,19.44288983,169.83,169.78,230.21298983]
[1739957137703,13.55468983,169.83,169.78,236.10288983]
[1739957137906,1.6014,169.83,169.78,236.10288983]
[1739957139000,1.6014,169.83,169.79,11.95328983]
[1739957139505,0.03,169.83,169.82,11.95328983]
[1739957139711,0.03,169.83,169.82,92.85298983]
[1739957140118,0.03,169.83,169.82,98.74148983]
[1739957141812,0.03,169.83,169.82,80.8997]
[1739957143306,0.03,169.83,169.82,86.7882]
[1739957143735,0.03,169.83,169.82,80.8997]
[1739957145299,0.03,169.83,169.82,236.10148983]
[1739957145518,0.03,169.83,169.82,224.1482]
[1739957145809,0.03,169.83,169.82,218.2597]
[1739957147306,11.98328983,169.83,169.82,218.2597]
[1739957149335,17.87148983,169.83,169.77,218.2597]
[1739957149508,11.95328983,169.81,169.77,218.2597]
[1739957149934,11.95328983,169.81,169.77,224.1499]
[1739957150327,11.95328983,169.81,169.77,80.8997]
[1739957151015,11.95328983,169.8,169.77,80.8997]
[1739957153623,11.95328983,169.78,169.77,80.8997]
[1739957154430,11.95328983,169.79,169.77,80.8997]
[1739957157541,17.84288983,169.79,169.77,80.8997]
[1739957158245,11.95328983,169.78,169.77,80.8997]
[1739957159439,11.95328983,169.79,169.77,80.8997]
[1739957159616,11.95328983,169.8,169.77,80.8997]
[1739957159822,11.95328983,169.81,169.77,80.8997]
[1739957160339,11.98328983,169.83,169.77,98.74318983]
[1739957160521,11.98328983,169.83,169.77,236.10318983]
[1739957160720,11.98328983,169.83,169.78,11.95328983]
[1739957161140,11.95328983,169.82,169.78,224.1496]
[1739957161446,11.95328983,169.82,169.78,218.2597]
[1739957162451,0.03,169.83,169.78,236.10288983]
[1739957163333,0.03,169.83,169.78,224.1496]
[1739957163534,0.03,169.83,169.78,236.10288983]
[1739957163734,0.03,169.83,169.8,11.95328983]
[1739957163946,0.03,169.83,169.82,11.95328983]
[1739957164142,0.03,169.83,169.82,230.21298983]
[1739957167137,0.03,169.83,169.82,218.2597]
[1739957167849,0.03,169.83,169.82,224.1482]
[1739957168046,0.03,169.83,169.82,236.10148983]
[1739957171571,0.03,169.83,169.82,237.10148573]
[1739957173862,0.03,169.83,169.82,236.10148983]
[1739957174535,0.03,169.83,169.82,237.10148573]
[1739957175962,0.03,169.83,169.82,236.10148983]
[1739957176458,0.03,169.83,169.82,237.10148573]
[1739957176663,0.03,169.83,169.82,232.78669235]
[1739957177361,0.03,169.96,169.88,0.9999959]
[1739957177660,0.03,169.96,169.91,7.63849645]
[1739957178559,0.03,169.96,169.9,7.63849645]
[1739957178766,0.03,169.96,169.89,13.52459645]
[1739957178767,7.66849645,169.96,169.89,13.52459645]
[1739957179339,7.63849645,169.92,169.88,80.8997]
[1739957180150,7.63849645,169.93,169.88,80.8997]
[1739957180669,11.93032024,169.93,169.88,86.7861]
[1739957180844,11.96032024,169.96,169.89,11.93032024]
[1739957181048,11.96032024,169.96,169.9,11.93032024]
[1739957181565,11.96032024,169.96,169.89,92.83002024]
[1739957182495,11.96032024,169.96,169.9,5.8858]
[1739957183171,11.96032024,169.96,169.9,17.81612024]
[1739957183367,0.03,169.96,169.91,11.93032024]
[1739957183748,0.03,169.96,169.92,11.93032024]
[1739957183942,0.03,169.96,169.94,11.93032024]
[1739957184649,0.03,169.96,169.94,17.81442024]
[1739957185876,0.03,169.96,169.95,11.93032024]
[1739957186449,0.03,169.96,169.94,5.8841]
[1739957189876,0.03,169.96,169.94,17.81442024]
[1739957190284,0.03,169.96,169.95,11.93032024]
[1739957190969,0.03,169.96,169.94,17.81442024]
[1739957191585,0.03,169.96,169.95,11.93032024]
[1739957192385,0.03,169.96,169.95,17.81432024]
[1739957193088,0.03,169.96,169.94,17.81462024]
[1739957193497,0.03,169.96,169.95,11.93032024]
[1739957194173,0.03,169.96,169.95,17.81432024]
[1739957200083,0.03,169.96,169.95,20.71611583]
[1739957202593,0.03,169.96,169.95,31.70678343]
[1739957202894,0.03,169.96,169.95,39.02378343]
[1739957203496,0.03,170.0,169.95,56.78378343]
[1739957203703,16.2913,170.14,170.01,0.9999959]
[1739957203875,15.1017344,170.14,170.07,7.6269344]
[1739957204082,15.1017344,170.14,170.08,7.6269344]
[1739957204791,15.1017344,170.14,170.08,13.5064344]
[1739957205099,14.6317344,170.14,170.08,13.5064344]
[1739957205289,8.7539344,170.14,170.08,13.5064344]
[1739957205477,1.127,170.14,170.09,7.6269344]
[1739957206080,8.7539344,170.14,170.08,7.6269344]
[1739957206295,14.6314344,170.14,170.08,7.6269344]
[1739957206799,18.90518689,170.14,170.08,11.90068689]
[1739957207175,11.90068689,170.13,170.07,11.90068689]
[1739957207377,11.90068689,170.13,170.06,11.90068689]
[1739957207577,11.90068689,170.13,170.07,11.90068689]
[1739957208391,18.90518689,170.14,170.08,11.90068689]
[1739957208788,11.90068689,170.13,170.07,11.90068689]
[1739957209505,17.77878689,170.13,170.07,11.90068689]
[1739957209699,37.77878689,170.13,170.07,11.90068689]
[1739957210714,11.90068689,170.12,170.06,11.90068689]
[1739957211399,37.77878689,170.13,170.07,11.90068689]
[1739957213296,11.90068689,170.11,170.05,11.90068689]
[1739957213499,11.90068689,170.08,170.03,4.36]
[1739957213896,11.90068689,170.09,170.03,16.26068689]
[1739957214087,5.8782,170.12,170.05,11.90068689]
[1739957214292,11.90068689,170.11,170.06,11.90068689]
[1739957214501,11.90068689,170.12,170.06,11.90068689]
[1739957214901,17.77888689,170.12,170.06,11.90068689]
[1739957215312,17.77888689,170.12,170.07,5.8799]
[1739957215487,17.77888689,170.12,170.07,5.9429]
[1739957215694,11.90068689,170.12,170.07,5.9429]
[1739957217024,5.8779,170.13,170.07,5.9429]
[1739957217226,1.157,170.14,170.1,11.90068689]
[1739957217520,1.157,170.14,170.1,17.77948689]
[1739957218311,1.157,170.14,170.1,5.8788]
[1739957218621,11.90068689,170.13,170.08,5.8792]
[1739957218993,11.90068689,170.12,170.08,5.8792]
[1739957219503,11.90068689,170.13,170.08,5.8792]
[1739957221025,11.90068689,170.09,170.07,0.063]
[1739957221230,11.90068689,170.1,170.07,0.063]
[1739957221534,1.157,170.14,170.07,11.96368689]
[1739957221722,11.90068689,170.13,170.07,11.96368689]
[1739957222926,0.03,170.14,170.1,11.90068689]
[1739957223316,0.03,170.14,170.11,11.90068689]
[1739957223713,0.03,170.14,170.1,11.90068689]
[1739957224159,0.03,170.14,170.07,0.063]
[1739957224160,11.90068689,170.13,170.07,0.063]
[1739957224334,11.90068689,170.11,170.07,0.063]
[1739957224641,11.90068689,170.09,170.07,0.063]
[1739957225015,11.90068689,170.08,170.07,0.063]
[1739957225423,25.31253542,170.08,170.07,0.063]
[1739957225833,31.19203542,170.08,170.07,0.063]
[1739957228718,32.80613542,170.08,170.07,0.063]
[1739957229608,20.0,170.05,170.03,80.8997]
[1739957229814,20.0,170.05,170.01,80.8997]
[1739957229815,11.90068689,170.04,170.01,80.8997]
[1739957230011,11.90068689,170.02,170.01,80.8997]
[1739957231738,17.78228689,170.02,170.01,80.8997]
[1739957232538,11.90068689,170.04,170.01,80.8997]
[1739957232936,31.90068689,170.05,170.01,80.8997]
[1739957233322,11.90068689,170.05,170.01,80.8997]
[1739957233530,11.90068689,170.03,170.01,80.8997]
[1739957234720,11.90068689,170.04,170.01,80.8997]
[1739957236347,11.90068689,170.05,170.01,86.7816]
[1739957236556,11.90068689,170.06,170.01,86.7816]
[1739957236848,11.90068689,170.05,170.01,80.8997]
[1739957237920,20.0,170.04,170.01,80.8997]
[1739957238122,31.90068689,170.04,170.01,80.8997]
[1739957239056,37.78168689,170.04,170.01,80.8997]
[1739957239532,17.78168689,170.04,170.01,80.8997]
[1739957240137,17.78168689,170.04,170.01,80.9627]
[1739957240948,11.90068689,170.03,170.01,80.9627]
[1739957241130,31.19413542,170.02,170.01,80.9627]
[1739957241741,31.19413542,170.02,170.01,0.063]
[1739957242044,20.0,169.98,169.96,80.8997]
[1739957242248,11.90068689,169.97,169.93,80.8997]
[1739957242428,11.90068689,169.95,169.93,80.8997]
[1739957244544,11.90068689,169.99,169.93,224.1444]
[1739957244754,11.90068689,170.01,169.94,11.90068689]
[1739957244966,11.90068689,170.04,169.98,11.90068689]
[1739957245265,27.78128689,170.05,169.98,218.2597]
[1739957245429,11.90068689,170.02,169.98,218.2597]
[1739957246857,17.78238689,170.02,169.98,218.2597]
[1739957247154,11.90068689,170.01,169.98,218.2597]
[1739957247339,11.90068689,170.0,169.98,218.2597]
[1739957247534,11.90068689,170.0,169.98,80.8997]
[1739957247744,11.90068689,170.01,169.98,80.8997]
[1739957248341,11.90068689,170.02,169.98,80.8997]
[1739957248547,11.90068689,170.01,169.98,80.8997]
[1739957249151,17.78218689,170.03,169.98,80.8997]
[1739957249343,27.78138689,170.05,169.98,98.68338689]
[1739957249560,27.78138689,170.05,169.98,236.04338689]
[1739957250451,17.78138689,170.05,169.98,236.04338689]
[1739957250631,11.90068689,170.03,169.98,218.2597]
[1739957251058,11.90068689,170.02,169.98,218.2597]
[1739957252560,11.90068689,170.02,169.98,218.3227]
[1739957253665,11.90068689,170.02,169.98,80.9627]
[1739957254155,17.78238689,170.02,169.98,80.9627]
[1739957257462,11.90068689,170.01,169.98,80.9627]
[1739957258858,17.78268689,170.01,169.98,80.9627]
[1739957259062,11.90068689,169.99,169.98,80.9627]
[1739957259357,11.90068689,169.99,169.98,0.063]
[1739957260769,17.78328689,169.99,169.98,0.063]
[1739957261558,11.90068689,169.99,169.98,0.063]
[1739957261963,11.90068689,170.01,169.98,80.9627]
[1739957264354,11.90068689,170.0,169.98,80.9627]
[1739957264656,11.90068689,169.99,169.98,80.9627]
[1739957265169,17.78328689,169.99,169.98,80.9627]
[1739957265375,11.90068689,170.0,169.98,80.9627]
[1739957265549,5.8809,170.04,169.98,80.9627]
[1739957265752,11.90068689,170.03,169.98,80.9627]
[1739957266768,11.90068689,170.02,169.98,80.9627]
[1739957267453,5.882,170.01,169.98,80.9627]
[1739957268579,17.78268689,170.01,169.98,80.9627]
[1739957270985,11.90068689,169.99,169.98,0.063]
[1739957271290,25.31253542,169.99,169.98,0.063]
[1739957272951,31.19513542,169.99,169.98,0.063]
[1739957273157,13.41184853,169.98,169.91,80.8997]
[1739957273362,11.90068689,169.95,169.91,80.8997]
[1739957273565,11.90068689,169.96,169.91,218.2597]
[1739957274165,11.90068689,169.97,169.91,224.1451]
[1739957274369,11.90068689,169.97,169.91,236.04578689]
[1739957275374,17.78378689,169.98,169.91,236.04578689]
[1739957275767,17.78378689,169.98,169.92,11.90068689]
[1739957275768,11.90068689,169.98,169.92,11.90068689]
[1739957275969,11.90068689,170.0,169.93,11.90068689]
[1739957276165,11.90068689,170.0,169.93,230.16038689]
[1739957276993,11.90068689,169.97,169.93,218.2597]
[1739957278306,11.90068689,169.97,169.93,218.3227]
[1739957280379,17.78408689,169.97,169.93,80.9627]
[1739957280886,11.90068689,169.97,169.93,80.9627]
[1739957281184,11.90068689,170.0,169.94,11.90068689]
[1739957281387,0.03,170.01,169.96,11.90068689]
[1739957282600,0.03,170.01,169.97,5.8833]
[1739957282798,0.03,170.01,169.97,236.04368689]
[1739957283589,0.03,170.01,169.99,19.74248689]
[1739957283790,0.03,170.01,170.0,11.90068689]
[1739957283962,0.03,170.01,170.0,230.16038689]
[1739957284165,0.03,170.01,170.0,218.2597]
[1739957284595,0.03,170.01,170.0,236.04268689]
[1739957287295,0.03,170.01,170.0,218.2597]
[1739957287999,0.03,170.01,170.0,224.142]
[1739957289476,0.03,170.01,170.0,218.2597]
[1739957290495,0.03,170.01,170.0,224.142]
[1739957294077,0.03,170.01,170.0,236.04268689]
[1739957294585,0.03,170.01,170.0,224.142]
[1739957295294,0.03,170.01,170.0,236.04268689]
[1739957298002,0.03,170.05,170.01,14.41184443]
[1739957298202,0.03,170.05,170.04,11.90068689]
[1739957298906,0.03,170.05,170.04,230.16038689]
[1739957299876,0.03,170.05,170.04,236.04128689]
[1739957300304,0.03,170.05,170.04,240.46128689]
[1739957307692,0.03,170.05,170.04,236.04128689]
[1739957310908,0.03,170.05,170.04,224.1406]
[1739957312383,0.03,170.05,170.04,236.04128689]
[1739957314715,0.03,170.05,170.04,231.76032648]
[1739957314910,0.03,170.05,170.04,224.1406]
[1739957316111,0.03,170.05,170.04,218.2597]
[1739957317721,0.03,170.05,170.04,80.8997]
[1739957318013,7.64972648,170.05,170.04,80.8997]
[1739957318794,0.03,170.05,170.04,80.8997]
[1739957318995,7.64972648,170.05,170.04,80.8997]
[1739957327515,13.53032648,170.05,170.04,80.8997]
[1739957328021,13.53032648,170.05,170.01,80.9627]
[1739957328217,7.61972648,170.02,170.01,80.9627]
[1739957332812,13.50132648,170.02,170.01,80.9627]
[1739957333003,43.9802324,170.02,170.01,0.063]
[1739957333203,59.39208093,170.02,170.0,0.063]
[1739957333524,59.39208093,170.02,169.95,80.8997]
[1739957333525,20.0,169.98,169.95,80.8997]
[1739957333726,7.61972648,169.96,169.95,80.8997]
[1739957334319,13.50342648,169.96,169.95,80.8997]
[1739957336107,13.50342648,169.96,169.93,0.063]
[1739957336317,7.61972648,169.94,169.93,0.063]
[1739957336509,7.61972648,169.95,169.93,0.063]
[1739957337026,7.61972648,169.96,169.93,0.063]
[1739957337229,7.61972648,169.96,169.93,80.9627]
[1739957338903,7.61972648,169.94,169.93,80.9627]
[1739957340932,7.61972648,169.95,169.93,80.9627]
[1739957341314,7.61972648,169.96,169.93,80.9627]
[1739957341722,5.8816,170.02,169.93,224.2072]
[1739957342029,7.61972648,170.01,169.96,5.8837]
[1739957342208,7.61972648,170.0,169.96,5.8837]
[1739957343350,7.61972648,170.0,169.95,5.884]
[1739957343556,7.61972648,169.99,169.95,5.884]
[1739957344622,7.61972648,170.0,169.93,245.03432648]
[1739957344832,7.61972648,170.0,169.94,5.8844]
[1739957345629,7.61972648,170.0,169.94,13.50412648]
[1739957345830,7.61972648,170.0,169.94,231.76382648]
[1739957346433,25.8817,170.02,169.94,239.89462648]
[1739957346624,7.61972648,170.0,169.94,239.89462648]
[1739957347139,7.61972648,170.0,169.94,232.2749]
[1739957349313,7.61972648,170.0,169.94,239.89462648]
[1739957350224,7.64972648,170.0,169.94,239.89462648]
[1739957352541,0.03,170.0,169.95,7.61972648]
[1739957352927,0.03,170.0,169.96,7.61972648]
[1739957353123,0.03,170.0,169.98,7.61972648]
[1739957353327,0.03,170.0,169.98,225.87942648]
[1739957354330,0.03,170.0,169.99,7.61972648]
[1739957354844,0.03,170.0,169.99,13.50232648]
[1739957355933,0.03,170.0,169.99,26.00302648]
[1739957356245,0.03,170.0,169.99,26.88500292]
[1739957356443,0.03,170.0,169.99,26.00302648]
[1739957356945,7.64972648,170.0,169.98,218.2597]
[1739957357142,7.61972648,169.99,169.98,218.2597]
[1739957357635,7.61972648,169.99,169.98,80.8997]
[1739957358951,7.64972648,170.0,169.98,80.8997]
[1739957361843,13.50232648,169.99,169.93,80.9627]
[1739957362049,7.61972648,169.94,169.93,80.9627]
[1739957362230,7.61972648,169.94,169.93,0.063]
[1739957363854,13.50412648,169.94,169.93,0.063]
[1739957368953,7.61972648,169.94,169.93,0.063]
[1739957369337,13.50412648,169.94,169.93,0.063]
[1739957369646,26.91597501,169.94,169.93,0.063]
[1739957373554,27.91597501,169.94,169.93,0.063]
[1739957374761,20.0,169.91,169.89,80.9627]
[1739957374952,7.61972648,169.9,169.89,0.063]
[1739957375856,13.50552648,169.9,169.89,0.063]
[1739957378756,7.61972648,169.9,169.89,0.063]
[1739957381445,13.50552648,169.9,169.89,0.063]
[1739957381649,26.91737501,169.9,169.89,0.063]
[1739957382249,27.91737501,169.9,169.89,0.063]
[1739957383566,20.0,169.86,169.84,0.063]
[1739957383768,7.61972648,169.85,169.84,0.063]
[1739957386164,13.50722648,169.85,169.84,0.063]
[1739957389179,7.61972648,169.85,169.84,0.063]
[1739957389675,13.50722648,169.85,169.84,0.063]
[1739957389870,26.91907501,169.85,169.84,0.063]
[1739957390068,58.39798093,169.85,169.84,0.063]
[1739957390580,27.91907501,169.85,169.84,0.063]
[1739957391076,58.39798093,169.85,169.84,0.063]
[1739957391889,52.51048093,169.84,169.82,0.063]
[1739957392056,38.0986324,169.83,169.82,0.063]
[1739957393365,43.9868324,169.83,169.82,0.063]
[1739957395479,13.41184853,169.82,169.81,0.063]
[1739957397181,19.30034853,169.82,169.81,0.063]
[1739957398871,26.92007501,169.82,169.81,0.063]
[1739957399476,7.61972648,169.82,169.81,0.063]
[1739957399961,13.50822648,169.82,169.81,0.063]
[1739957403177,7.61972648,169.82,169.81,0.063]
[1739957404662,13.50822648,169.82,169.81,0.063]
[1739957409264,13.57122648,169.82,169.81,0.063]
[1739957409465,7.68272648,169.82,169.81,0.063]
[1739957410468,0.063,169.82,169.81,0.063]
[1739957410665,7.68272648,169.82,169.81,0.063]
[1739957414199,7.68272648,169.82,169.81,80.9627]
[1739957414376,0.063,169.82,169.81,80.9627]
[1739957414576,7.68272648,169.82,169.81,80.9627]
[1739957416296,0.063,169.82,169.81,80.9627]
[1739957418676,7.68272648,169.82,169.81,80.9627]
[1739957419977,7.68272648,169.82,169.81,0.063]
[1739957420298,13.57122648,169.82,169.81,0.063]
[1739957424986,26.98307501,169.82,169.81,0.063]
[1739957425510,27.98307501,169.82,169.81,0.063]
[1739957426502,0.063,169.82,169.81,0.063]
[1739957426703,0.063,169.82,169.81,80.9627]
[1739957428486,0.063,169.82,169.81,86.8516]
[1739957428885,0.063,169.82,169.81,80.9627]
[1739957429688,7.68272648,169.82,169.81,80.9627]
[1739957435214,13.57122648,169.82,169.81,80.9627]
[1739957436408,13.57122648,169.82,169.81,0.063]
[1739957436613,26.98307501,169.82,169.81,0.063]
[1739957438586,13.57122648,169.82,169.81,0.063]
[1739957439099,7.68272648,169.82,169.81,0.063]
[1739957439807,13.57122648,169.82,169.81,0.063]
[1739957443494,26.98307501,169.82,169.81,0.063]
[1739957444091,20.0,169.79,169.76,0.063]
[1739957444304,7.61972648,169.77,169.76,0.063]
[1739957445420,27.92187501,169.77,169.76,0.063]
[1739957445618,26.92187501,169.77,169.76,0.063]
[1739957445922,30.30584125,169.77,169.76,0.063]
[1739957447120,29.30584125,169.77,169.76,0.063]
[1739957449915,32.20616139,169.77,169.76,0.063]
[1739957457430,33.20616139,169.77,169.76,0.063]
[1739957457610,33.41184853,169.74,169.73,0.063]
[1739957457795,71.51048093,169.74,169.73,0.063]
[1739957458711,77.40178093,169.74,169.73,0.063]
[1739957460424,77.40178093,169.74,169.66,0.063]
[1739957460425,7.61972648,169.69,169.66,0.063]
[1739957460726,13.51312648,169.68,169.66,0.063]
[1739957460924,7.61972648,169.68,169.66,0.063]
[1739957463505,13.51312648,169.68,169.66,0.063]
[1739957464226,7.61972648,169.68,169.66,0.063]
[1739957467403,13.51312648,169.68,169.66,0.063]
[1739957467808,7.61972648,169.68,169.66,0.063]
[1739957468308,13.51312648,169.68,169.66,0.063]
[1739957468936,7.61972648,169.68,169.66,0.063]
[1739957472018,7.61972648,169.7,169.67,80.9627]
[1739957472224,0.063,169.72,169.67,80.9627]
[1739957472225,7.68272648,169.72,169.67,80.9627]
[1739957472605,7.68272648,169.72,169.67,86.8563]
[1739957472807,7.61972648,169.71,169.67,80.9627]
[1739957473011,7.61972648,169.7,169.67,80.9627]
[1739957473212,7.61972648,169.69,169.67,80.9627]
[1739957473849,7.61972648,169.71,169.67,86.8563]
[1739957475415,7.61972648,169.71,169.67,80.9627]
[1739957475743,7.61972648,169.69,169.67,80.9627]
[1739957476343,7.61972648,169.68,169.67,0.063]
[1739957476522,7.61972648,169.69,169.67,0.063]
[1739957476717,7.61972648,169.7,169.67,0.063]
[1739957477028,0.063,169.72,169.67,86.8563]
[1739957477029,7.61972648,169.71,169.67,86.8563]
[1739957480140,7.68272648,169.72,169.67,86.8563]
[1739957481366,7.61972648,169.71,169.67,86.8563]
[1739957482950,0.063,169.72,169.68,6.1421]
[1739957483266,0.063,169.72,169.68,15.39902648]
[1739957483436,0.063,169.72,169.69,7.61972648]
[1739957484957,7.68272648,169.72,169.68,226.039]
[1739957485138,7.61972648,169.71,169.68,226.039]
[1739957485657,7.68272648,169.72,169.68,226.039]
[1739957487328,7.68272648,169.72,169.68,231.9324]
[1739957487529,0.063,169.72,169.68,231.9324]
[1739957488165,7.68272648,169.72,169.68,231.9324]
[1739957488330,7.68272648,169.72,169.68,226.039]
[1739957489269,7.68272648,169.72,169.68,231.9323]
[1739957490560,0.063,169.72,169.68,231.9323]
[1739957492642,10.063,169.72,169.68,231.9323]
[1739957498166,10.063,169.72,169.69,7.61972648]
[1739957499364,10.063,169.72,169.68,239.55202648]
[1739957500753,23.57482648,169.72,169.68,226.039]
[1739957501269,17.68272648,169.72,169.68,226.039]
[1739957501659,10.063,169.72,169.68,226.039]
[1739957502063,10.063,169.72,169.68,231.9324]
[1739957502456,10.063,169.72,169.69,7.61972648]
[1739957502662,10.063,169.72,169.68,239.55212648]
[1739957503353,10.063,169.72,169.68,239.58212648]
[1739957506152,10.063,169.72,169.71,7.61972648]
[1739957506356,10.063,169.72,169.71,225.87942648]
[1739957506858,10.063,169.72,169.71,231.77182648]
[1739957507659,10.063,169.72,169.71,224.1521]
[1739957508452,10.063,169.72,169.71,231.77182648]
[1739957510049,10.063,169.72,169.71,224.1521]
[1739957510253,10.063,169.72,169.71,80.8997]
[1739957510470,17.68272648,169.72,169.71,80.8997]
[1739957511375,23.57472648,169.72,169.71,80.8997]
[1739957511578,17.68272648,169.72,169.71,80.8997]
[1739957512795,7.68272648,169.72,169.71,80.8997]
[1739957515311,7.68272648,169.72,169.69,218.2597]
[1739957521078,7.68272648,169.72,169.69,80.8997]
[1739957521601,13.57472648,169.72,169.69,80.8997]
[1739957523402,7.68272648,169.72,169.69,80.8997]
[1739957524997,13.57482648,169.72,169.69,80.8997]
[1739957526007,7.61972648,169.71,169.69,80.8997]
[1739957526908,7.61972648,169.71,169.69,80.9297]
[1739957527104,0.063,169.72,169.69,86.8227]
[1739957527405,0.063,169.72,169.69,231.80242648]
[1739957528605,0.063,169.72,169.69,218.2897]
[1739957530707,0.063,169.72,169.69,224.1826]
[1739957531783,0.063,169.72,169.69,231.80232648]
[1739957533108,0.063,169.72,169.69,94.44232648]
[1739957533318,0.063,169.72,169.69,86.8226]
[1739957536698,0.063,169.72,169.69,94.44232648]
[1739957537100,0.063,169.72,169.7,7.61972648]
[1739957537302,0.063,169.72,169.71,7.61972648]
[1739957537712,0.063,169.72,169.71,232.71182648]
[1739957538725,0.063,169.81,169.71,246.12367501]
[1739957539007,0.063,169.81,169.78,7.61972648]
[1739957539234,0.063,169.81,169.78,226.81942648]
[1739957540113,0.063,169.81,169.78,219.1997]
[1739957541148,0.063,169.81,169.8,7.61972648]
[1739957541514,0.063,169.81,169.8,80.8997]
[1739957541713,7.68272648,169.81,169.8,80.8997]
[1739957542048,0.063,169.81,169.8,80.8997]
[1739957542225,7.68272648,169.81,169.8,80.8997]
[1739957542417,0.063,169.81,169.8,80.8997]
[1739957544249,0.063,169.81,169.8,86.7889]
[1739957544613,0.063,169.81,169.8,94.40862648]
[1739957544818,0.063,169.81,169.8,232.70862648]
[1739957547246,0.063,169.81,169.8,246.12047501]
[1739957549547,0.063,169.81,169.8,232.70862648]
[1739957550745,0.063,169.81,169.8,237.02976087]
[1739957551541,0.063,169.81,169.8,219.1997]
[1739957553132,0.063,169.81,169.8,237.02976087]
[1739957553522,0.063,169.81,169.8,225.0889]
[1739957555035,0.063,169.81,169.8,219.1997]
[1739957559160,0.063,169.81,169.8,225.0889]
[1739957561148,0.063,169.81,169.8,237.02976087]
[1739957561951,0.063,169.81,169.8,225.0889]
[1739957562150,0.063,169.81,169.8,219.1997]
[1739957562658,0.063,169.81,169.8,80.8997]
[1739957568542,0.063,169.81,169.8,219.1997]
[1739957571870,7.70782514,169.81,169.8,80.8997]
[1739957572665,7.70782514,169.81,169.77,219.1997]
[1739957572966,7.64482514,169.78,169.77,219.1997]
[1739957573679,7.64482514,169.78,169.74,80.8997]
[1739957573889,7.64482514,169.75,169.74,80.8997]
[1739957577857,13.53592514,169.75,169.72,80.9297]
[1739957578161,7.64482514,169.73,169.72,80.9297]
[1739957578474,7.64482514,169.73,169.72,0.03]
[1739957580246,7.64482514,169.74,169.72,0.03]